bitfinex-derivatives/quotes_BTCF0:USTF0_20251030
["timestamp","ask_amount","ask_price","bid_price","bid_amount"]
[1761816995660,0.1477403,110200.0,110190.0,1.5]
[1761816995857,0.53205472,110200.0,110190.0,1.5]
[1761816996060,0.8579169,110200.0,110190.0,1.5]
[1761816996362,0.8606369,110200.0,110190.0,1.5]
[1761816996560,0.1477642,110180.0,110170.0,0.19481522]
[1761816996762,0.9858584,110180.0,110170.0,0.19481522]
[1761816996974,1.00936833,110180.0,110170.0,1.69481522]
[1761816997354,0.84643724,110180.0,110170.0,1.69481522]
[1761816997556,1.00836833,110180.0,110170.0,1.69481522]
[1761816997762,0.84543724,110180.0,110170.0,1.78558022]
[1761816997962,0.84543724,110180.0,110170.0,1.78758022]
[1761816998159,0.44139304,110180.0,110170.0,1.89758022]
[1761816998365,0.39491304,110180.0,110170.0,1.89758022]
[1761816998662,0.48766974,110180.0,110170.0,1.78558022]
[1761816998860,0.39691304,110180.0,110170.0,2.27638022]
[1761816999058,0.05908311,110180.0,110170.0,2.27838022]
[1761816999460,0.05908311,110180.0,110170.0,1.91758022]
[1761816999862,0.05908311,110180.0,110170.0,2.22986022]
[1761817000059,0.06008311,110180.0,110170.0,2.09986022]
[1761817000263,0.08358988,110180.0,110170.0,2.20986022]
[1761817000565,0.00308311,110180.0,110170.0,2.93628131]
[1761817000861,0.00308311,110180.0,110170.0,2.93900131]
[1761817001064,0.02659072,110180.0,110170.0,2.93628131]
[1761817001254,0.02659072,110180.0,110170.0,2.93900131]
[1761817001255,0.00308311,110180.0,110170.0,2.93900131]
[1761817002365,0.37442,110200.0,110190.0,0.1137485]
[1761817002667,0.53248625,110200.0,110190.0,0.29804959]
[1761817002869,0.53248625,110200.0,110190.0,0.40804959]
[1761817003166,0.44174595,110200.0,110190.0,0.57804959]
[1761817003360,0.44174595,110200.0,110190.0,0.6190016]
[1761817003661,0.44774595,110200.0,110190.0,0.6190016]
[1761817003868,0.44774595,110200.0,110190.0,0.9407716]
[1761817004059,0.04981,110200.0,110190.0,1.3015716]
[1761817005158,0.04781,110200.0,110190.0,1.3015716]
[1761817005362,0.04681,110200.0,110190.0,1.3015716]
[1761817006064,0.17432083,110200.0,110190.0,0.35877]
[1761817006264,0.53512083,110200.0,110190.0,0.35877]
[1761817006567,0.1479185,110190.0,110180.0,0.4476609]
[1761817006753,0.5087185,110190.0,110180.0,0.4476609]
[1761817007563,0.5087185,110190.0,110180.0,0.1332609]
[1761817009972,0.05717,110190.0,110180.0,0.447144]
[1761817010173,0.5087109,110200.0,110190.0,0.1332585]
[1761817010470,0.04573262,110200.0,110190.0,0.7788316]
[1761817010770,0.06753262,110200.0,110190.0,0.7788316]
[1761817010969,0.06753262,110200.0,110190.0,1.1396316]
[1761817011375,0.17350292,110200.0,110190.0,0.4475785]
[1761817011671,0.53430292,110200.0,110190.0,0.02114]
[1761817011868,0.1479185,110190.0,110180.0,0.4476208]
[1761817012069,0.17151112,110190.0,110180.0,0.4476208]
[1761817014269,0.08076262,110190.0,110180.0,0.5676208]
[1761817014467,0.04573262,110190.0,110180.0,0.8253139]
[1761817014669,0.02359262,110190.0,110180.0,0.8253139]
[1761817014865,0.05717,110200.0,110190.0,0.1332585]
[1761817015176,0.06755671,110200.0,110190.0,1.1389416]
[1761817015371,0.17152701,110200.0,110190.0,1.0122616]
[1761817015672,0.17152701,110200.0,110190.0,0.8083785]
[1761817016066,0.17252701,110200.0,110190.0,0.04251]
[1761817016377,0.1479185,110190.0,110180.0,0.8084249]
[1761817016674,0.17153521,110190.0,110180.0,0.8084249]
[1761817016875,0.08078671,110190.0,110180.0,0.8084249]
[1761817017074,0.17153521,110190.0,110180.0,1.012308]
[1761817017477,0.08078671,110190.0,110180.0,1.012308]
[1761817018468,0.08078671,110190.0,110180.0,1.282308]
[1761817019878,0.17153521,110190.0,110180.0,1.292308]
[1761817020069,0.06755671,110190.0,110180.0,1.298988]
[1761817020271,0.02361671,110190.0,110180.0,1.298988]
[1761817020469,0.1128813,110200.0,110190.0,0.1406285]
[1761817020673,0.04576052,110200.0,110190.0,0.8153116]
[1761817020980,0.04576052,110200.0,110190.0,0.9853116]
[1761817021873,0.02462052,110200.0,110190.0,0.9853116]
[1761817022076,0.3849582,110220.0,110210.0,0.143362]
[1761817022272,0.02362183,110220.0,110210.0,0.9716851]
[1761817022472,0.02362183,110220.0,110210.0,0.9744051]
[1761817022782,0.02362183,110220.0,110210.0,1.3352051]
[1761817023077,0.02362183,110220.0,110210.0,1.3324851]
[1761817023275,0.02462183,110220.0,110210.0,1.3324851]
[1761817023968,0.02362183,110220.0,110210.0,1.3324851]
[1761817024168,0.02762183,110220.0,110210.0,1.3324851]
[1761817024565,0.02762183,110220.0,110210.0,0.9716851]
[1761817024769,0.02762183,110220.0,110210.0,1.3324851]
[1761817025581,0.02562183,110220.0,110210.0,1.3324851]
[1761817027682,0.02562183,110220.0,110210.0,1.9324851]
[1761817029283,0.002,110220.0,110210.0,2.07013557]
[1761817031575,0.02558184,110220.0,110210.0,2.07013557]
[1761817032280,0.02458184,110220.0,110210.0,2.07013557]
[1761817032483,0.02358184,110220.0,110210.0,2.07013557]
[1761817032681,0.02358184,110220.0,110210.0,1.47013557]
[1761817032881,0.3849582,110240.0,110230.0,0.1431656]
[1761817033089,0.3608,110240.0,110230.0,1.10893917]
[1761817033386,0.3608,110240.0,110230.0,0.79893917]
[1761817033387,0.4430682,110240.0,110230.0,0.79893917]
[1761817033678,0.4430682,110240.0,110230.0,0.35932]
[1761817033679,0.5337755,110240.0,110230.0,0.35932]
[1761817033880,0.4430682,110240.0,110230.0,0.4574056]
[1761817034086,0.4430682,110240.0,110230.0,0.5774056]
[1761817034087,0.41891,110240.0,110230.0,0.5774056]
[1761817034277,0.04452,110240.0,110230.0,0.4574056]
[1761817034477,0.04452,110240.0,110230.0,0.8182056]
[1761817034682,0.04452,110240.0,110230.0,0.79893917]
[1761817035095,0.04652,110240.0,110230.0,0.79893917]
[1761817035386,0.04952,110240.0,110230.0,0.46647797]
[1761817036092,0.41032,110240.0,110230.0,0.46647797]
[1761817036281,0.005,110240.0,110230.0,0.59647797]
[1761817037084,0.005,110240.0,110230.0,0.93801154]
[1761817037585,0.1394773,110240.0,110230.0,0.80801154]
[1761817038282,0.1384773,110240.0,110230.0,0.80801154]
[1761817038490,0.1364773,110240.0,110230.0,0.80801154]
[1761817038990,0.04477,110240.0,110230.0,0.80801154]
[1761817039193,0.04577,110240.0,110230.0,0.80801154]
[1761817040893,0.04577,110240.0,110230.0,0.94801154]
[1761817041393,0.02312,110240.0,110230.0,0.94801154]
[1761817041785,0.002,110240.0,110230.0,0.80801154]
[1761817041990,0.002,110240.0,110230.0,1.46881154]
[1761817042294,0.04577,110240.0,110230.0,0.91801154]
[1761817042490,0.04577,110240.0,110230.0,1.27881154]
[1761817042795,0.002,110240.0,110230.0,1.41881154]
[1761817043201,0.0261582,110240.0,110230.0,1.05801154]
[1761817043890,0.1379855,110240.0,110230.0,0.80801154]
[1761817044599,0.0261582,110240.0,110230.0,1.04801154]
[1761817044787,0.04958801,110240.0,110230.0,1.04801154]
[1761817044988,0.07070801,110240.0,110230.0,1.04801154]
[1761817045192,0.04958801,110240.0,110230.0,1.04801154]
[1761817045593,0.04958801,110240.0,110230.0,1.40881154]
[1761817045791,0.51948805,110260.0,110250.0,0.1440591]
[1761817045792,0.08076908,110260.0,110250.0,0.1440591]
[1761817046004,0.03221626,110260.0,110250.0,1.49051267]
[1761817046205,0.04846145,110270.0,110260.0,0.1406109]
[1761817046206,0.03221619,110270.0,110260.0,0.1406109]
[1761817046508,0.03221619,110270.0,110260.0,0.97294447]
[1761817046803,0.41847,110280.0,110270.0,0.1339227]
[1761817047107,0.41847,110280.0,110270.0,0.5684427]
[1761817048213,0.42047,110280.0,110270.0,0.5684427]
[1761817048512,0.42347,110280.0,110270.0,0.5684427]
[1761817048810,0.42347,110280.0,110270.0,0.91734627]
[1761817049004,0.42347,110280.0,110270.0,0.90997627]
[1761817049200,0.42347,110280.0,110270.0,0.78997627]
[1761817049405,0.5141444,110280.0,110270.0,0.4484427]
[1761817051216,0.42347,110280.0,110270.0,0.4484427]
[1761817051403,0.5141444,110280.0,110270.0,0.4484427]
[1761817052107,0.42347,110280.0,110270.0,0.4484427]
[1761817053310,0.42347,110280.0,110270.0,0.74130521]
[1761817053813,0.42347,110280.0,110270.0,0.5784427]
[1761817054111,0.42347,110280.0,110270.0,0.74130521]
[1761817054512,0.42347,110280.0,110270.0,0.61130521]
[1761817055407,0.42347,110280.0,110270.0,0.72867521]
[1761817055608,0.42347,110280.0,110270.0,0.86867521]
[1761817055809,0.42347,110280.0,110270.0,0.61867521]
[1761817056114,0.42347,110280.0,110270.0,0.61130521]
[1761817057116,0.5141444,110280.0,110270.0,0.61130521]
[1761817061019,0.5141444,110280.0,110270.0,0.4484427]
[1761817061316,0.42347,110280.0,110270.0,0.73130521]
[1761817061621,0.40957,110280.0,110270.0,0.92867521]
[1761817062319,0.40957,110280.0,110270.0,0.73867521]
[1761817062522,0.5141944,110280.0,110270.0,0.61130521]
[1761817063817,0.5141944,110280.0,110270.0,0.35776]
[1761817064021,0.53703828,110280.0,110270.0,0.1339227]
[1761817064420,0.85115828,110280.0,110270.0,0.04324]
[1761817064620,0.05818,110270.0,110260.0,0.61084941]
[1761817064918,0.05818,110270.0,110260.0,0.66084941]
[1761817065922,0.05918,110270.0,110260.0,0.66084941]
[1761817066818,0.06018,110270.0,110260.0,0.66084941]
[1761817070230,0.06018,110270.0,110260.0,0.93084941]
[1761817070526,0.002,110270.0,110260.0,1.29901941]
[1761817071522,0.02511,110270.0,110260.0,1.29164941]
[1761817071828,0.04623,110270.0,110260.0,1.29164941]
[1761817072327,0.002,110270.0,110260.0,1.29901941]
[1761817072719,0.04623,110270.0,110260.0,1.29901941]
[1761817073223,0.06018,110270.0,110260.0,1.29164941]
[1761817073929,0.002,110270.0,110260.0,1.29901941]
[1761817076426,0.02481578,110270.0,110260.0,1.29901941]
[1761817077935,0.44379578,110270.0,110260.0,0.04322]
[1761817078230,0.44379578,110270.0,110260.0,0.02183]
[1761817078427,0.05818,110260.0,110250.0,0.04322]
[1761817078633,0.44179578,110260.0,110250.0,0.04322]
[1761817078824,0.44179578,110260.0,110250.0,0.1339191]
[1761817079130,0.44179578,110260.0,110250.0,0.29678161]
[1761817079628,0.44179578,110260.0,110250.0,0.20608251]
[1761817080528,0.44179578,110260.0,110250.0,0.04322]
[1761817081732,0.53248938,110260.0,110250.0,0.04322]
[1761817082033,0.53248938,110260.0,110250.0,0.20608251]
[1761817082932,0.1488873,110240.0,110230.0,0.03086986]
[1761817083125,0.53248988,110240.0,110230.0,0.02183]
[1761817083620,0.53248988,110240.0,110220.0,0.16286251]
[1761817083621,0.1488956,110230.0,110220.0,0.20608251]
[1761817084235,0.1468956,110230.0,110220.0,0.20608251]
[1761817085027,0.1468956,110230.0,110220.0,0.20908251]
[1761817085629,0.1438956,110230.0,110220.0,0.21818352]
[1761817086228,0.1438956,110230.0,110220.0,0.22018352]
[1761817086428,0.1438956,110230.0,110220.0,0.21818352]
[1761817087438,0.5046956,110230.0,110220.0,0.01210101]
[1761817087638,0.5046956,110230.0,110220.0,0.02483]
[1761817089938,0.5046956,110230.0,110220.0,0.04622]
[1761817091038,0.5046956,110230.0,110220.0,0.20908251]
[1761817091438,0.5046956,110230.0,110220.0,0.37229054]
[1761817094842,0.5046956,110230.0,110220.0,0.37029054]
[1761817095442,0.5066956,110230.0,110220.0,0.37029054]
[1761817096036,0.66973087,110230.0,110220.0,0.16403527]
[1761817096546,0.67073087,110230.0,110220.0,0.16303527]
[1761817098132,0.0907238,110220.0,110210.0,0.07428403]
[1761817098342,0.67205907,110220.0,110210.0,0.21485149]
[1761817098733,0.67205907,110220.0,110210.0,0.20572527]
[1761817098949,0.5090238,110220.0,110210.0,0.20572527]
[1761817099549,0.5100238,110220.0,110210.0,0.20572527]
[1761817102255,0.5100238,110220.0,110210.0,0.29645727]
[1761817102841,0.5100238,110220.0,110210.0,0.20572527]
[1761817103042,0.5100238,110220.0,110210.0,0.27088308]
[1761817104452,0.5100238,110220.0,110210.0,0.10784781]
[1761817104753,0.5100238,110220.0,110210.0,0.27088308]
[1761817105447,0.5100238,110220.0,110210.0,0.36161508]
[1761817105647,0.04488,110220.0,110210.0,0.65133035]
[1761817105849,0.001,110220.0,110210.0,0.65133035]
[1761817106048,0.001,110220.0,110210.0,1.15697254]
[1761817106254,0.001,110220.0,110210.0,1.40423268]
[1761817106442,0.40468,110240.0,110230.0,0.1407756]
[1761817106644,0.04388,110240.0,110230.0,0.78080614]
[1761817106844,0.04388,110240.0,110230.0,0.84597457]
[1761817107043,0.0575,110240.0,110230.0,0.83860457]
[1761817107353,0.1482073,110240.0,110230.0,0.61040087]
[1761817107750,0.5130073,110240.0,110230.0,0.51968527]
[1761817107949,0.5150073,110240.0,110230.0,0.20572527]
[1761817109440,0.4243,110240.0,110230.0,0.29644087]
[1761817109647,0.5150073,110240.0,110230.0,0.29644087]
[1761817110148,0.1542073,110240.0,110230.0,0.29644087]
[1761817112456,0.5150073,110240.0,110230.0,0.20572527]
[1761817113354,0.5177273,110240.0,110230.0,0.20572527]
[1761817113554,0.1482156,110230.0,110220.0,0.49110573]
[1761817113758,0.5090156,110230.0,110220.0,0.50317627]
[1761817113954,0.5090156,110230.0,110220.0,0.52464627]
[1761817114259,0.5090156,110230.0,110220.0,0.361611]
[1761817114851,0.5120156,110230.0,110220.0,0.43392897]
[1761817115158,0.5120156,110230.0,110220.0,0.2282037]
[1761817116356,0.67505087,110230.0,110220.0,0.2282037]
[1761817116561,0.67505087,110230.0,110220.0,0.06516843]
[1761817116750,0.67505087,110230.0,110220.0,0.2282037]
[1761817119359,0.5120156,110230.0,110220.0,0.2282037]
[1761817119559,0.5120156,110230.0,110220.0,0.2494237]
[1761817119763,0.67505087,110230.0,110220.0,0.2282037]
[1761817121062,0.67505087,110230.0,110220.0,0.16303527]
[1761817121962,0.1346038,110220.0,110210.0,0.08638843]
[1761817122160,0.62529907,110220.0,110210.0,0.22829313]
[1761817122551,1.15185434,110220.0,110210.0,0.00349343]
[1761817122757,0.1484203,110200.0,110190.0,0.29096014]
[1761817122961,0.1484203,110200.0,110190.0,0.20945527]
[1761817123853,0.1484203,110200.0,110190.0,0.04842]
[1761817124065,0.1484203,110200.0,110190.0,0.21145527]
[1761817124263,0.1484203,110200.0,110190.0,0.30420377]
[1761817124666,0.1484203,110200.0,110190.0,0.31308004]
[1761817124862,0.04428,110200.0,110190.0,0.61348531]
[1761817125162,0.02233,110200.0,110190.0,1.17428531]
[1761817125359,0.73272,110210.0,110200.0,0.04642]
[1761817125559,0.39492166,110210.0,110200.0,0.37249054]
[1761817125959,0.73272,110210.0,110200.0,0.37249054]
[1761817127169,0.41848,110210.0,110200.0,0.37249054]
[1761817128161,0.41848,110210.0,110200.0,0.77747084]
[1761817128354,0.41848,110210.0,110200.0,0.78415084]
[1761817128560,0.41848,110210.0,110200.0,1.03415084]
[1761817128862,0.40508,110210.0,110200.0,1.03415084]
[1761817129269,0.41848,110210.0,110200.0,0.68673054]
[1761817129662,0.41848,110210.0,110200.0,0.77747084]
[1761817132971,0.41848,110210.0,110200.0,0.68673054]
[1761817133175,0.41848,110210.0,110200.0,0.77747084]
[1761817135177,0.41848,110210.0,110200.0,0.4514003]
[1761817135472,0.41848,110210.0,110200.0,0.77747084]
[1761817138972,0.41848,110210.0,110200.0,0.4514003]
[1761817139274,0.41848,110210.0,110200.0,0.77747084]
[1761817139665,0.05768,110210.0,110200.0,0.77747084]
[1761817140270,0.05768,110210.0,110200.0,0.52369527]
[1761817140662,0.41848,110210.0,110200.0,0.52369527]
[1761817140869,0.58151527,110210.0,110200.0,0.52369527]
[1761817141070,0.67224727,110210.0,110200.0,0.52369527]
[1761817141574,0.509212,110210.0,110200.0,0.52369527]
[1761817142181,0.67224727,110210.0,110200.0,0.52369527]
[1761817142378,0.1350203,110200.0,110190.0,0.14604427]
[1761817142675,0.67225557,110200.0,110190.0,0.53233154]
[1761817142875,0.5092203,110200.0,110190.0,0.53233154]
[1761817143870,0.5092203,110200.0,110190.0,0.53333154]
[1761817144174,0.98625557,110200.0,110190.0,0.16503527]
[1761817144568,0.98625557,110200.0,110190.0,0.18826527]
[1761817145177,0.98625557,110200.0,110190.0,0.21145527]
[1761817145376,0.8232203,110200.0,110190.0,0.30220377]
[1761817146673,0.8232203,110200.0,110190.0,0.31108295]
[1761817147084,0.8232203,110200.0,110190.0,0.22033445]
[1761817147480,1.0094232,110200.0,110190.0,0.16503527]
[1761817147680,1.0094232,110200.0,110190.0,0.22041327]
[1761817147873,0.98625557,110200.0,110190.0,0.22041327]
[1761817148274,1.00943176,110200.0,110190.0,0.22041327]
[1761817148677,0.84639649,110200.0,110190.0,0.21145527]
[1761817148876,1.00943176,110200.0,110190.0,0.21145527]
[1761817149388,0.84639649,110200.0,110190.0,0.21145527]
[1761817149784,0.53239649,110200.0,110190.0,0.30220377]
[1761817150082,0.84647649,110200.0,110190.0,0.30220377]
[1761817151278,0.84647649,110200.0,110190.0,0.31122157]
[1761817153178,0.53239649,110200.0,110190.0,0.31122157]
[1761817153382,0.53239649,110200.0,110190.0,0.31129825]
[1761817153578,0.17159649,110200.0,110190.0,0.31129825]
[1761817153782,0.53239649,110200.0,110190.0,0.31129825]
[1761817154285,0.17159649,110200.0,110190.0,0.31129825]
[1761817154887,0.53239649,110200.0,110190.0,0.31129825]
[1761817155077,0.17159649,110200.0,110190.0,0.31129825]
[1761817155277,0.17159649,110200.0,110190.0,0.62533825]
[1761817156184,0.53239649,110200.0,110190.0,0.62533825]
[1761817156387,0.17159649,110200.0,110190.0,0.62533825]
[1761817161387,0.06745619,110200.0,110190.0,0.63270825]
[1761817161584,0.02317619,110200.0,110190.0,1.1358202]
[1761817161780,0.15725649,110200.0,110190.0,0.7958202]
[1761817161988,0.17051649,110200.0,110190.0,0.62533825]
[1761817162586,0.07977619,110200.0,110190.0,0.73533825]
[1761817162788,0.06651619,110200.0,110190.0,0.9058202]
[1761817162991,0.07977619,110200.0,110190.0,1.2666202]
[1761817165499,0.07977619,110200.0,110190.0,0.9058202]
[1761817165793,0.07977619,110200.0,110190.0,1.2666202]
[1761817167299,0.17051649,110200.0,110190.0,1.1492502]
[1761817167593,0.17051649,110200.0,110190.0,1.2592502]
[1761817167801,0.53131649,110200.0,110190.0,0.7884502]
[1761817168296,0.17051649,110200.0,110190.0,0.73533825]
[1761817169297,0.17051649,110200.0,110190.0,0.62533825]
[1761817169697,0.17051649,110200.0,110190.0,0.7884502]
[1761817169999,0.17051649,110200.0,110190.0,0.9084502]
[1761817170690,0.17051649,110200.0,110190.0,0.62533825]
[1761817171995,0.06651619,110200.0,110190.0,1.0758202]
[1761817173202,0.17051649,110200.0,110190.0,0.7958202]
[1761817173398,0.17051649,110200.0,110190.0,0.9158202]
[1761817175704,0.06651619,110200.0,110190.0,0.9158202]
[1761817176098,0.06651619,110200.0,110190.0,0.7958202]
[1761817176809,0.06651619,110200.0,110190.0,0.9158202]
[1761817177196,0.04419619,110200.0,110190.0,0.9158202]
[1761817177396,0.02317619,110200.0,110190.0,0.7958202]
[1761817177597,0.02317619,110200.0,110190.0,1.1158202]
[1761817178401,0.02317619,110200.0,110190.0,1.4766202]
[1761817179705,0.44194656,110220.0,110210.0,0.135622]
[1761817180006,0.38498656,110220.0,110210.0,0.89285395]
[1761817180400,0.3608,110220.0,110210.0,0.89285395]
[1761817180595,0.44194656,110230.0,110220.0,0.1470538]
[1761817180805,0.08114656,110230.0,110220.0,0.58016575]
[1761817181603,0.04520656,110230.0,110220.0,0.7432777]
[1761817181809,0.02418656,110230.0,110220.0,0.7432777]
[1761817182012,0.02418656,110230.0,110220.0,0.81448827]
[1761817182206,0.02618656,110230.0,110220.0,0.81448827]
[1761817182804,0.02618656,110230.0,110220.0,1.17800827]
[1761817183004,0.02618656,110230.0,110220.0,1.17528827]
[1761817183204,0.02918656,110230.0,110220.0,1.17800827]
[1761817184099,0.02918656,110230.0,110220.0,1.17528827]
[1761817184301,0.02418656,110230.0,110220.0,1.17528827]
[1761817184504,0.02718656,110230.0,110220.0,1.17528827]
[1761817184814,0.04895656,110230.0,110220.0,1.17528827]
[1761817185108,0.02718656,110230.0,110220.0,1.17528827]
[1761817186610,0.02718656,110230.0,110220.0,1.17800827]
[1761817187202,0.002,110230.0,110220.0,1.17800827]
[1761817187609,0.002,110230.0,110220.0,1.17528827]
[1761817188505,0.003,110230.0,110220.0,1.17528827]
[1761817190017,0.05646153,110240.0,110230.0,0.1405456]
[1761817190215,0.04595656,110240.0,110230.0,1.23837755]
[1761817190806,0.06908656,110240.0,110230.0,1.23837755]
[1761817191820,0.09202865,110240.0,110230.0,1.23837755]
[1761817192019,0.09402865,110240.0,110230.0,1.23837755]
[1761817192420,0.09702865,110240.0,110230.0,1.23837755]
[1761817193020,0.09402865,110240.0,110230.0,1.23837755]
[1761817193519,0.09502865,110240.0,110230.0,1.23837755]
[1761817193720,0.09302865,110240.0,110230.0,1.23837755]
[1761817193923,0.09602865,110240.0,110230.0,1.23837755]
[1761817194118,0.05112865,110240.0,110230.0,1.23837755]
[1761817194415,0.07189865,110240.0,110230.0,1.23837755]
[1761817194621,0.09702865,110240.0,110230.0,1.23837755]
[1761817195513,0.05212865,110240.0,110230.0,1.23837755]
[1761817195710,0.07389865,110240.0,110230.0,1.23837755]
[1761817196406,0.07189865,110240.0,110230.0,1.23837755]
[1761817196612,0.06989865,110240.0,110230.0,1.23837755]
[1761817196812,0.07189865,110240.0,110230.0,1.23837755]
[1761817197310,0.06889865,110240.0,110230.0,1.23837755]
[1761817197511,0.05212865,110240.0,110230.0,1.23837755]
[1761817200016,0.07389865,110240.0,110230.0,1.23837755]
[1761817200623,0.07084209,110240.0,110230.0,1.23837755]
[1761817200816,0.07184209,110240.0,110230.0,1.23837755]
[1761817201121,0.10925865,110240.0,110230.0,0.97100755]
[1761817201321,0.10925865,110240.0,110230.0,1.10100755]
[1761817201523,0.08507209,110240.0,110230.0,1.10100755]
[1761817202121,0.08407209,110240.0,110230.0,1.10100755]
[1761817202616,0.08407209,110240.0,110230.0,0.97100755]
[1761817202818,0.08307209,110240.0,110230.0,0.97100755]
[1761817203124,0.08407209,110240.0,110230.0,0.97837755]
[1761817203317,0.07084209,110240.0,110230.0,1.09837755]
[1761817203516,0.08407209,110240.0,110230.0,1.09837755]
[1761817204327,0.07084209,110240.0,110230.0,1.09837755]
[1761817205122,0.09502865,110240.0,110230.0,1.09837755]
[1761817205423,0.09502865,110240.0,110230.0,0.97837755]
[1761817205626,0.10825865,110240.0,110230.0,1.10837755]
[1761817205820,0.10825865,110240.0,110230.0,0.97837755]
[1761817207331,0.09502865,110240.0,110230.0,0.97837755]
[1761817207628,0.09502865,110240.0,110230.0,1.08837755]
[1761817209624,0.07084209,110240.0,110230.0,1.08837755]
[1761817209819,0.07084209,110240.0,110230.0,2.58837755]
[1761817210219,0.0479,110240.0,110230.0,2.72837755]
[1761817210414,0.003,110240.0,110230.0,2.72837755]
[1761817211020,0.41896,110260.0,110250.0,0.1331591]
[1761817211221,0.44192648,110260.0,110250.0,1.043223]
[1761817211830,0.44192648,110260.0,110250.0,0.61011105]
[1761817212032,0.44192648,110260.0,110250.0,0.783343]
[1761817212327,0.44992648,110260.0,110250.0,0.783343]
[1761817212831,0.08912648,110260.0,110250.0,0.913343]
[1761817213331,0.08912648,110260.0,110250.0,0.91295674]
[1761817213722,0.07586648,110260.0,110250.0,0.91295674]
[1761817214319,0.07586648,110260.0,110250.0,0.92217568]
[1761817214725,0.0529,110260.0,110250.0,0.92217568]
[1761817215927,0.0529,110260.0,110250.0,1.28297568]
[1761817216640,0.02977,110260.0,110250.0,1.48297568]
[1761817216927,0.05238,110260.0,110250.0,1.48297568]
[1761817217136,0.008,110260.0,110250.0,1.48297568]
[1761817218436,0.06562,110260.0,110250.0,0.97993686]
[1761817218635,0.06562,110260.0,110250.0,1.07989686]
[1761817218838,0.06562,110260.0,110250.0,0.97989686]
[1761817219135,0.06562,110260.0,110250.0,0.88919776]
[1761817220132,0.06562,110260.0,110250.0,0.52839776]
[1761817220532,0.06562,110260.0,110250.0,0.61909686]
[1761817226434,0.42642,110260.0,110250.0,0.52839776]
[1761817228147,0.42642,110260.0,110250.0,0.61909686]
[1761817229149,0.42642,110260.0,110250.0,0.61905686]
[1761817229350,0.06562,110260.0,110250.0,0.61905686]
[1761817229746,0.42642,110260.0,110250.0,0.61905686]
[1761817230254,0.42642,110260.0,110250.0,0.52835776]
[1761817231355,0.44932858,110260.0,110250.0,0.52835776]
[1761817231657,0.45204858,110260.0,110250.0,0.21459776]
[1761817231848,0.44932858,110260.0,110250.0,0.21459776]
[1761817234558,0.44932858,110260.0,110250.0,0.30529686]
[1761817234755,1.04932858,110260.0,110250.0,0.21586776]
[1761817235966,1.04932858,110260.0,110250.0,0.20664882]
[1761817236260,0.44932858,110260.0,110250.0,0.20664882]
[1761817237262,0.44932858,110260.0,110250.0,0.21548319]
[1761817237863,0.44932858,110260.0,110250.0,0.46910111]
[1761817238054,0.76304858,110260.0,110250.0,0.30618229]
[1761817238663,0.44932858,110260.0,110250.0,0.46910111]
[1761817239357,0.08852858,110260.0,110250.0,0.46910111]
[1761817240049,0.07582858,110260.0,110250.0,0.47922111]
[1761817240759,0.43662858,110260.0,110250.0,0.47922111]
[1761817240958,0.44932858,110260.0,110250.0,0.46910111]
[1761817241464,0.44932858,110260.0,110250.0,0.78282111]
[1761817241660,0.08852858,110260.0,110250.0,0.78282111]
[1761817241967,0.07582858,110260.0,110250.0,0.79294111]
[1761817242267,0.45032858,110260.0,110250.0,0.52920319]
[1761817246155,0.45032858,110260.0,110250.0,0.61990229]
[1761817247751,0.08952858,110260.0,110250.0,0.78282111]
[1761817248564,0.45032858,110260.0,110250.0,0.78282111]
[1761817248763,0.45032858,110260.0,110250.0,0.61990229]
[1761817249067,0.45032858,110260.0,110250.0,0.52920319]
[1761817250566,0.45032858,110260.0,110250.0,0.61990229]
[1761817251072,0.45032858,110260.0,110250.0,0.78282111]
[1761817251267,0.45032858,110260.0,110250.0,0.61990229]
[1761817252459,0.45032858,110260.0,110250.0,0.78282111]
[1761817252664,0.07582858,110260.0,110250.0,0.79294111]
[1761817253374,0.07582858,110260.0,110250.0,0.92294111]
[1761817253876,0.07282858,110260.0,110250.0,0.92294111]
[1761817255176,0.07282858,110260.0,110250.0,0.79294111]
[1761817255371,0.06782858,110260.0,110250.0,0.79294111]
[1761817255574,0.07382858,110260.0,110250.0,0.79294111]
[1761817255775,0.08752858,110260.0,110250.0,0.79294111]
[1761817255976,0.08352858,110260.0,110250.0,0.79294111]
[1761817256180,0.08552858,110260.0,110250.0,0.79294111]
[1761817256676,0.08552858,110260.0,110250.0,0.78282111]
[1761817256875,0.08552858,110260.0,110250.0,0.52920319]
[1761817257379,0.44632858,110260.0,110250.0,0.52920319]
[1761817259083,0.44632858,110260.0,110250.0,0.61990229]
[1761817259379,0.44632858,110260.0,110250.0,0.36628437]
[1761817259675,0.44632858,110260.0,110250.0,0.61990229]
[1761817260674,0.44632858,110260.0,110250.0,0.91282111]
[1761817260880,0.44632858,110260.0,110250.0,1.08294111]
[1761817261274,0.02690858,110260.0,110250.0,1.44646111]
[1761817261467,0.004,110260.0,110250.0,1.44646111]
[1761817262082,0.44336866,110280.0,110270.0,0.1409226]
[1761817262382,0.4422333,110280.0,110270.0,0.91040024]
[1761817262769,0.03675,110270.0,110260.0,0.1335593]
[1761817262975,0.4427033,110270.0,110260.0,0.1335593]
[1761817263174,0.4427033,110270.0,110260.0,0.68234764]
[1761817264981,0.4447033,110270.0,110260.0,0.68234764]
[1761817265383,0.4457033,110270.0,110260.0,0.68234764]
[1761817265578,0.4457033,110270.0,110260.0,0.77303854]
[1761817267683,0.4320033,110270.0,110260.0,1.07040854]
[1761817268471,0.0260133,110270.0,110260.0,1.59412736]
[1761817268884,0.0712033,110270.0,110260.0,0.90040854]
[1761817269187,0.0849033,110270.0,110260.0,0.57939854]
[1761817269385,0.4457033,110270.0,110260.0,0.89299854]
[1761817269575,0.4447033,110270.0,110260.0,0.89299854]
[1761817269776,0.4437033,110270.0,110260.0,0.89299854]
[1761817270683,0.4437033,110270.0,110260.0,0.96472]
[1761817271787,0.4437033,110270.0,110260.0,1.16472]
[1761817272187,0.4437033,110270.0,110260.0,1.17209]
[1761817272383,0.4300033,110270.0,110260.0,1.17209]
[1761817272786,0.3618,110270.0,110260.0,1.33500882]
[1761817273286,0.02400683,110270.0,110260.0,1.69580882]
[1761817275079,0.06886683,110270.0,110260.0,0.84625236]
[1761817275279,0.08167683,110270.0,110260.0,0.81177714]
[1761817276286,0.06886683,110270.0,110260.0,1.00914714]
[1761817277788,0.06886683,110270.0,110260.0,1.36994714]
[1761817278087,0.06886683,110270.0,110260.0,1.00914714]
[1761817278684,0.04586,110270.0,110260.0,1.00914714]
[1761817278884,0.0688499,110270.0,110260.0,1.00914714]
[1761817281187,0.0688499,110270.0,110260.0,1.36994714]
[1761817281589,0.02285,110270.0,110260.0,1.36994714]
[1761817281985,0.001,110270.0,110260.0,1.36994714]
[1761817283591,0.02285,110270.0,110260.0,1.00914714]
[1761817283986,0.04586,110270.0,110260.0,1.00914714]
[1761817285089,0.04586,110270.0,110260.0,1.36994714]